fUSD/lending_fUSD_20250505
["ID","MTS","AMOUNT","RATE_DAILY","PERIOD"]
[359995601,1746469840179,-465.04,0.00019999,2]
[359995602,1746469840188,-450.0,0.00019999,2]
[359995603,1746469840197,-1908.0,0.00019999,2]
[359995604,1746469840206,-450.0,0.00019999,2]
[359995605,1746469840215,-450.0,0.00019999,2]
[359995607,1746469840223,-458.44,0.00019999,2]
[359995608,1746469840232,-462.04815666,0.00019999,2]
[359995609,1746469840242,-154.84034765,0.00019999,2]
[359995610,1746469840251,-200.0,0.00019999,2]
[359995611,1746469840260,-450.0,0.00019999,2]
[359995612,1746469840269,-261.5,0.00019999,2]
[359995613,1746469840278,-776.91,0.00019999,2]
[359995614,1746469840286,-776.91,0.00019999,2]
[359995615,1746469840295,-776.91,0.00019999,2]
[359995616,1746469840304,-776.91,0.00019999,2]
[359995617,1746469840314,-776.91,0.00019999,2]
[359995618,1746469840322,-776.91,0.00019999,2]
[359995619,1746469840331,-776.91,0.00019999,2]
[359995620,1746469840339,-776.91,0.00019999,2]
[359995621,1746469840348,-776.91,0.00019999,2]
[359995622,1746469840357,-776.91,0.00019999,2]
[359995623,1746469840366,-776.91,0.00019999,2]
[359995624,1746469840375,-776.91,0.00019999,2]
[359995625,1746469840384,-776.91,0.00019999,2]
[359995626,1746469840393,-776.91,0.00019999,2]
[359995627,1746469840405,-776.91,0.00019999,2]
[359995628,1746469840414,-776.91,0.00019999,2]
[359995629,1746469840424,-776.91,0.00019999,2]
[359995630,1746469840433,-776.91,0.00019999,2]
[359995631,1746469840442,-776.91,0.00019999,2]
[359995632,1746469840451,-776.91,0.00019999,2]
[359995633,1746469840459,-776.91,0.00019999,2]
[359995634,1746469840469,-776.91,0.00019999,2]
[359995635,1746469840478,-450.0,0.00019999,2]
[359995636,1746469840487,-776.91,0.00019999,2]
[359995637,1746469840495,-450.0,0.00019999,2]
[359995638,1746469840504,-777.01774821,0.00019999,2]
[359995639,1746469840514,-450.0,0.00019999,2]
[359995640,1746469840525,-450.0,0.00019999,2]
[359995641,1746469840534,-450.0,0.00019999,2]
[359995642,1746469840543,-570.52,0.00019999,2]
[359995643,1746469840551,-450.0,0.00019999,2]
[359995644,1746469840561,-450.0,0.00019999,2]
[359995645,1746469840570,-450.0,0.00019999,2]
[359995646,1746469840579,-450.0,0.00019999,2]
[359995647,1746469840589,-489.59,0.00019999,2]
[359995648,1746469840599,-754.22,0.00019999,2]
[359995649,1746469840609,-754.22,0.00019999,2]
[359995650,1746469840618,-754.22,0.00019999,2]
[359995651,1746469840627,-754.22,0.00019999,2]
[359995652,1746469840636,-754.22,0.00019999,2]
[359995653,1746469840645,-754.22,0.00019999,2]
[359995654,1746469840654,-754.22,0.00019999,2]
[359995655,1746469840663,-754.22,0.00019999,2]
[359995656,1746469840672,-754.22,0.00019999,2]
[359995657,1746469840682,-551.34,0.00019999,2]
[359995658,1746469840691,-754.22,0.00019999,2]
[359995659,1746469840700,-754.22,0.00019999,2]
[359995660,1746469840709,-754.22,0.00019999,2]
[359995661,1746469840718,-754.22,0.00019999,2]
[359995662,1746469840730,-754.22,0.00019999,2]
[359995663,1746469840739,-754.22,0.00019999,2]
[359995664,1746469840749,-754.22,0.00019999,2]
[359995665,1746469840758,-754.22,0.00019999,2]
[359995666,1746469840767,-754.22,0.00019999,2]
[359995667,1746469840776,-754.22,0.00019999,2]
[359995668,1746469840785,-754.22,0.00019999,2]
[359995669,1746469840795,-754.22,0.00019999,2]
[359995670,1746469840804,-754.22,0.00019999,2]
[359995671,1746469840814,-754.22,0.00019999,2]
[359995672,1746469840823,-754.24,0.00019999,2]
[359995673,1746469840833,-450.0,0.00019999,2]
[359995674,1746469840843,-521.59,0.00019999,2]
[359995675,1746469840852,-450.0,0.00019999,2]
[359995676,1746469840862,-450.0,0.00019999,2]
[359995677,1746469840871,-157.85,0.00019999,2]
[359995678,1746469840881,-707.94,0.00019999,2]
[359995679,1746469840890,-707.94,0.00019999,2]
[359995680,1746469840900,-707.94,0.00019999,2]
[359995681,1746469840909,-707.94,0.00019999,2]
[359995682,1746469840923,-707.94,0.00019999,2]
[359995683,1746469840933,-707.94,0.00019999,2]
[359995684,1746469840942,-707.94,0.00019999,2]
[359995685,1746469840952,-707.94,0.00019999,2]
[359995686,1746469840962,-707.94,0.00019999,2]
[359995687,1746469840971,-707.94,0.00019999,2]
[359995688,1746469840980,-707.94,0.00019999,2]
[359995689,1746469840990,-707.94,0.00019999,2]
[359995690,1746469840999,-707.94,0.00019999,2]
[359995691,1746469841009,-707.94,0.00019999,2]
[359995692,1746469841019,-707.94,0.00019999,2]
[359995693,1746469841029,-707.94,0.00019999,2]
[359995694,1746469841038,-707.94,0.00019999,2]
[359995695,1746469841048,-707.94,0.00019999,2]
[359995696,1746469841058,-707.94,0.00019999,2]
[359995697,1746469841068,-707.94,0.00019999,2]
[359995698,1746469841078,-707.94,0.00019999,2]
[359995699,1746469841087,-707.94,0.00019999,2]
[359995700,1746469841098,-707.94,0.00019999,2]
[359995701,1746469841107,-708.08,0.00019999,2]
[359995702,1746469841116,-450.0,0.00019999,2]
[359995703,1746469841126,-450.0,0.00019999,2]
[359995704,1746469841136,-450.0,0.00019999,2]
[359995705,1746469841145,-348.86,0.00019999,2]
[359995706,1746469841156,-182.01186499,0.00019999,2]
[359995707,1746469841165,-409.02,0.00019999,2]
[359995708,1746469841175,-450.0,0.00019999,2]
[359995709,1746469841184,-453.23,0.00019999,2]
[359995710,1746469841194,-450.0,0.00019999,2]
[359995711,1746469841203,-450.0,0.00019999,2]
[359995712,1746469841212,-450.0,0.00019999,2]
[359995713,1746469841222,-4217.98,0.00019999,2]
[359995714,1746469841231,-4217.98,0.00019999,2]
[359995715,1746469841241,-4217.98,0.00019999,2]
[359995716,1746469841251,-4217.98,0.00019999,2]
[359995717,1746469841260,-4217.98,0.00019999,2]
[359995718,1746469841269,-4217.98,0.00019999,2]
[359995719,1746469841279,-4217.98,0.00019999,2]
[359995720,1746469841288,-4217.98,0.00019999,2]
[359995721,1746469841298,-4217.98,0.00019999,2]
[359995722,1746469841307,-4217.98,0.00019999,2]
[359995723,1746469841316,-4217.98,0.00019999,2]
[359995724,1746469841325,-4217.98,0.00019999,2]
[359995725,1746469841335,-450.0,0.00019999,2]
[359995726,1746469841345,-4217.98,0.00019999,2]
[359995727,1746469841523,-226.13,0.00019999,2]
[359995728,1746469841534,-4217.98,0.00019999,2]
[359995729,1746469841544,-4217.98,0.00019999,2]
[359995730,1746469841553,-4217.98,0.00019999,2]
[359995731,1746469841564,-4217.98,0.00019999,2]
[359995732,1746469841573,-4217.98,0.00019999,2]
[359995733,1746469841583,-4217.98,0.00019999,2]
[359995734,1746469841592,-4217.98,0.00019999,2]
[359995735,1746469841601,-4217.98,0.00019999,2]
[359995736,1746469841611,-4217.98,0.00019999,2]
[359995737,1746469841620,-4217.98,0.00019999,2]
[359995738,1746469841630,-4218.08027635,0.00019999,2]
[359995739,1746469841639,-450.0,0.00019999,2]
[359995740,1746469841648,-500.0,0.00019999,2]
[359995741,1746469841658,-500.0,0.00019999,2]
[359995742,1746469841667,-175.14860094,0.00019999,2]
[359995743,1746469841676,-703.0,0.0002,2]
[359995744,1746469841685,-82504.7171658,0.0002,2]
[359995745,1746469841700,-87312.2774188,0.0002,2]
[359995746,1746469841709,-82276.44810569,0.0002,2]
[359995747,1746469841720,-1340.37892029,0.0002,2]
[359995748,1746469841731,-6643.98009783,0.0002,2]
[359995749,1746469841742,-3191.39276772,0.0002,2]
[359995754,1746469842409,-450.0,0.00019999,2]
[359995755,1746469842419,-23966.62942325,0.0002,2]
[359995757,1746469842570,-278056.30546396,0.0002,2]
[359995758,1746469842579,-71116.98302836,0.0002,2]
[359995759,1746469842625,-57592.8972663,0.0002,2]
[359995760,1746469842636,-500.26999,0.0002,2]
[359995761,1746469842646,-25979.69349682,0.0002,2]
[359995762,1746469842679,-9250.00000006,0.0002,2]
[359995775,1746469845427,-6439.24650312,0.0002,2]
[359995776,1746469845436,-120617.16465567,0.0002,2]
[359995777,1746469845446,-17222.32734669,0.0002,2]
[359995778,1746469845480,-18702.17,0.0002,2]
[359995779,1746469845692,-539.3515475,0.0002,2]
[359995780,1746469845703,-14502.75,0.0002,2]
[359995794,1746469902953,4924.3,0.00019332,2]
[359995795,1746469957254,200.0,0.00019091,2]
[359995796,1746469985422,1000.0,0.00018966,2]
[359995797,1746470043419,23900.0,0.00018952,2]
[359995798,1746470144346,7905.29,0.00019102,2]
[359995799,1746470263079,4430.79,0.00019069,2]
[359995800,1746470394953,565.38,0.00019071,2]
[359995802,1746470597678,4000.0,0.00019029,2]
[359995803,1746470682589,500.0,0.00019034,2]
[359995804,1746470717455,192.11,0.00019029,2]
[359995805,1746470717718,192.11,0.00028543,120]
[359995825,1746470972206,250.0,0.00019029,2]
[359996006,1746471031669,-522.00025852,0.00019798,2]
[359996007,1746471031780,-677.99974148,0.00019798,2]
[359996008,1746471031789,-300.0,0.00019798,2]
[359996009,1746471031798,-250.0,0.00019799,2]
[359996010,1746471031807,-419.869723,0.00019799,2]
[359996011,1746471031817,-151.0,0.00019799,2]
[359996012,1746471031827,-200.0,0.00019799,2]
[359996013,1746471031837,-44061.31890769,0.00019799,2]
[359996014,1746471031846,-200.0,0.000198,2]
[359996015,1746471031856,-200.0,0.00019836,2]
[359996016,1746471031865,-207.4,0.00019888,2]
[359996017,1746471031875,-2628.5352,0.00019896,2]
[359996018,1746471031884,-764.0,0.00019899,2]
[359996019,1746471031893,-185.16886369,0.00019899,2]
[359996020,1746471031902,-11869.5779,0.000199,2]
[359996021,1746471031912,-2400.6568,0.000199,2]
[359996023,1746471031921,-11501.21878324,0.000199,2]
[359996024,1746471031931,-694.1544162,0.000199,2]
[359996025,1746471031939,-275.98534884,0.000199,2]
[359996027,1746471031949,-500.0,0.00019973,2]
[359996029,1746471031958,-500.0,0.00019973,2]
[359996030,1746471031968,-1526.423,0.00019986,2]
[359996032,1746471031978,-1543.0504545,0.00019986,2]
[359996034,1746471031987,-1788.9467778,0.00019986,2]
[359996036,1746471032001,-12160.81477002,0.00019986,2]
[359996037,1746471032012,-520.59153593,0.00019986,2]
[359996038,1746471032115,-5436.12829075,0.00019986,2]
[359996039,1746471032125,-151.0,0.00019988,2]
[359996040,1746471032134,-668.65185757,0.00019988,2]
[359996041,1746471032144,-151.0,0.00019988,2]
[359996042,1746471032154,-337.50505337,0.00019998,2]
[359996043,1746471032164,-450.0,0.00019998,2]
[359996044,1746471032174,-1170.81600726,0.00019998,2]
[359996045,1746471032183,-450.0,0.00019998,2]
[359996046,1746471032192,-312.69658061,0.00019998,2]
[359996047,1746471032202,-565.01,0.00019998,2]
[359996048,1746471032211,-493.04,0.00019998,2]
[359996049,1746471032220,-565.51,0.00019998,2]
[359996050,1746471032230,-450.0,0.00019998,2]
[359996051,1746471032239,-450.0,0.00019998,2]
[359996052,1746471032248,-450.0,0.00019998,2]
[359996053,1746471032258,-450.0,0.00019998,2]
[359996054,1746471032267,-450.0,0.00019998,2]
[359996055,1746471032276,-19747.79682252,0.00019998,2]
[359996056,1746471032286,-450.0,0.00019998,2]
[359996057,1746471032295,-450.0,0.00019998,2]
[359996058,1746471032305,-582.07,0.00019998,2]
[359996059,1746471032314,-450.0,0.00019998,2]
[359996060,1746471032324,-450.0,0.00019998,2]
[359996061,1746471032333,-450.0,0.00019998,2]
[359996062,1746471032342,-450.0,0.00019998,2]
[359996063,1746471032352,-450.0,0.00019998,2]
[359996064,1746471032361,-450.0,0.00019998,2]
[359996065,1746471032370,-237.4,0.00019998,2]
[359996066,1746471032380,-450.0,0.00019998,2]
[359996067,1746471032389,-450.0,0.00019998,2]
[359996068,1746471032398,-450.0,0.00019998,2]
[359996069,1746471032407,-220.16788687,0.00019998,2]
[359996070,1746471032416,-450.0,0.00019998,2]
[359996071,1746471032426,-364.59,0.00019998,2]
[359996072,1746471032436,-577.17,0.00019998,2]
[359996073,1746471032445,-450.0,0.00019998,2]
[359996074,1746471032455,-195.34,0.00019998,2]
[359996075,1746471032464,-450.0,0.00019998,2]
[359996076,1746471032473,-450.0,0.00019998,2]
[359996077,1746471032482,-450.0,0.00019998,2]
[359996078,1746471032491,-500.0,0.00019998,2]
[359996079,1746471032501,-450.0,0.00019998,2]
[359996080,1746471032510,-500.0,0.00019998,2]
[359996081,1746471032519,-500.0,0.00019998,2]
[359996082,1746471032529,-450.0,0.00019998,2]
[359996083,1746471032539,-450.0,0.00019998,2]
[359996084,1746471032548,-450.0,0.00019998,2]
[359996085,1746471032557,-450.0,0.00019998,2]
[359996086,1746471032567,-450.0,0.00019998,2]
[359996087,1746471032576,-181.59,0.00019998,2]
[359996088,1746471032586,-1122.830005,0.00019998,2]
[359996089,1746471032595,-450.0,0.00019998,2]
[359996090,1746471032605,-450.0,0.00019998,2]
[359996091,1746471032615,-450.0,0.00019998,2]
[359996092,1746471032625,-450.0,0.00019998,2]
[359996093,1746471032634,-450.0,0.00019998,2]
[359996094,1746471032643,-561.320092,0.00019998,2]
[359996095,1746471032652,-450.0,0.00019998,2]
[359996096,1746471032662,-450.0,0.00019998,2]
[359996097,1746471032671,-450.0,0.00019998,2]
[359996098,1746471032680,-450.0,0.00019998,2]
[359996099,1746471032690,-450.0,0.00019998,2]
[359996100,1746471032699,-450.0,0.00019998,2]
[359996101,1746471032708,-450.0,0.00019998,2]
[359996102,1746471032717,-450.0,0.00019998,2]
[359996103,1746471032727,-450.0,0.00019998,2]
[359996104,1746471032736,-566.16,0.00019998,2]
[359996105,1746471032745,-450.0,0.00019998,2]
[359996106,1746471032755,-525.74,0.00019998,2]
[359996107,1746471032764,-450.0,0.00019998,2]
[359996108,1746471032773,-450.0,0.00019998,2]
[359996109,1746471032783,-450.0,0.00019998,2]
[359996110,1746471032792,-450.0,0.00019998,2]
[359996111,1746471032802,-450.0,0.00019998,2]
[359996112,1746471032811,-450.0,0.00019998,2]
[359996113,1746471032821,-450.0,0.00019998,2]
[359996114,1746471032831,-565.39,0.00019998,2]
[359996115,1746471032842,-585.33,0.00019998,2]
[359996116,1746471032851,-450.0,0.00019998,2]
[359996117,1746471032860,-450.0,0.00019998,2]
[359996118,1746471032869,-478.28,0.00019998,2]
[359996119,1746471032879,-450.0,0.00019998,2]
[359996120,1746471032888,-450.0,0.00019998,2]
[359996121,1746471032897,-450.0,0.00019998,2]
[359996122,1746471032907,-450.0,0.00019998,2]
[359996123,1746471032916,-450.0,0.00019998,2]
[359996124,1746471032925,-450.0,0.00019998,2]
[359996125,1746471032934,-450.0,0.00019998,2]
[359996126,1746471032943,-450.0,0.00019998,2]
[359996127,1746471032953,-450.0,0.00019998,2]
[359996128,1746471032962,-450.0,0.00019998,2]
[359996129,1746471032971,-450.0,0.00019998,2]
[359996130,1746471032981,-450.0,0.00019998,2]
[359996131,1746471032991,-450.0,0.00019998,2]
[359996132,1746471033004,-450.0,0.00019998,2]
[359996133,1746471033013,-450.0,0.00019998,2]
[359996134,1746471033023,-450.0,0.00019998,2]
[359996135,1746471033035,-450.0,0.00019998,2]
[359996136,1746471033045,-450.0,0.00019998,2]
[359996137,1746471033055,-450.0,0.00019998,2]
[359996138,1746471033064,-450.0,0.00019998,2]
[359996139,1746471033075,-450.0,0.00019998,2]
[359996140,1746471033086,-450.0,0.00019998,2]
[359996141,1746471033096,-450.0,0.00019998,2]
[359996142,1746471033107,-450.61165606,0.00019998,2]
[359996143,1746471033117,-456.6255072,0.00019999,2]
[359996144,1746471033127,-450.0,0.00019999,2]
[359996145,1746471033137,-185.2,0.00019999,2]
[359996146,1746471033147,-450.0,0.00019999,2]
[359996147,1746471033157,-520.67705875,0.00019999,2]
[359996148,1746471033166,-168.3758424,0.00019999,2]
[359996149,1746471033176,-500.0,0.00019999,2]
[359996150,1746471033186,-450.0,0.00019999,2]
[359996151,1746471033196,-450.0,0.00019999,2]
[359996152,1746471033206,-450.0,0.00019999,2]
[359996153,1746471033216,-450.0,0.00019999,2]
[359996154,1746471033226,-500.0,0.00019999,2]
[359996155,1746471033236,-450.0,0.00019999,2]
[359996156,1746471033245,-450.0,0.00019999,2]
[359996157,1746471033255,-450.0,0.00019999,2]
[359996158,1746471033264,-207.85,0.00019999,2]
[359996159,1746471033273,-450.0,0.00019999,2]
[359996160,1746471033283,-450.0,0.00019999,2]
[359996161,1746471033292,-450.0,0.00019999,2]
[359996162,1746471033302,-450.0,0.00019999,2]
[359996163,1746471033312,-450.0,0.00019999,2]
[359996164,1746471033321,-450.0,0.00019999,2]
[359996165,1746471033331,-450.0,0.00019999,2]
[359996166,1746471033342,-450.0,0.00019999,2]
[359996167,1746471033351,-450.0,0.00019999,2]
[359996168,1746471033361,-500.0,0.00019999,2]
[359996169,1746471033372,-450.0,0.00019999,2]
[359996170,1746471033382,-450.0,0.00019999,2]
[359996171,1746471033392,-450.0,0.00019999,2]
[359996172,1746471033402,-450.0,0.00019999,2]
[359996173,1746471033412,-450.0,0.00019999,2]
[359996174,1746471033422,-450.0,0.00019999,2]
[359996175,1746471033432,-450.0,0.00019999,2]
[359996176,1746471033442,-541.3,0.00019999,2]
[359996177,1746471033452,-450.0,0.00019999,2]
[359996178,1746471033461,-501.18,0.00019999,2]
[359996179,1746471033471,-450.0,0.00019999,2]
[359996180,1746471033481,-450.0,0.00019999,2]
[359996181,1746471033490,-450.0,0.00019999,2]
[359996182,1746471033500,-450.0,0.00019999,2]
[359996183,1746471033510,-450.0,0.00019999,2]
[359996184,1746471033520,-450.0,0.00019999,2]
[359996185,1746471033529,-450.0,0.00019999,2]
[359996186,1746471033539,-450.0,0.00019999,2]
[359996187,1746471033549,-410.90400135,0.00019999,2]
[359996188,1746471033559,-450.0,0.00019999,2]
[359996189,1746471033568,-450.0,0.00019999,2]
[359996190,1746471033579,-450.0,0.00019999,2]
[359996191,1746471033588,-450.0,0.00019999,2]
[359996192,1746471033598,-450.0,0.00019999,2]
[359996193,1746471033607,-349.99,0.00019999,2]
[359996194,1746471033617,-196.9722204,0.00019999,2]
[359996195,1746471033632,-253.0277796,0.00019999,2]
[359996196,1746471033642,-450.0,0.00019999,2]
[359996197,1746471033651,-38.98797855,0.00019999,2]
[359996198,1746471033671,-411.01202145,0.00019999,2]
[359996199,1746471033681,-248.45,0.00019999,2]
[359996200,1746471033691,-450.0,0.00019999,2]
[359996201,1746471033700,-45.40055347,0.00019999,2]
[359996202,1746471033711,-404.59944653,0.00019999,2]
[359996203,1746471033720,-65.34112857,0.00019999,2]
[359996204,1746471033732,-384.65887143,0.00019999,2]
[359996205,1746471033742,-414.16978513,0.00019999,2]
[359996206,1746471033754,-102.15021487,0.00019999,2]
[359996207,1746471033763,-450.0,0.00019999,2]
[359996208,1746471033772,-64.3475044,0.00019999,2]
[359996209,1746471033783,-455.6524956,0.00019999,2]
[359996210,1746471033793,-450.0,0.00019999,2]
[359996211,1746471033802,-450.0,0.00019999,2]
[359996212,1746471033812,-450.0,0.00019999,2]
[359996213,1746471033821,-450.0,0.00019999,2]
[359996214,1746471033831,-450.0,0.00019999,2]
[359996215,1746471033841,-450.0,0.00019999,2]
[359996216,1746471033850,-450.0,0.00019999,2]
[359996217,1746471033860,-450.0,0.00019999,2]
[359996218,1746471033870,-478.79250035,0.00019999,2]
[359996219,1746471033880,-450.0,0.00019999,2]
[359996220,1746471033890,-450.0,0.00019999,2]
[359996221,1746471033900,-450.0,0.00019999,2]
[359996222,1746471033911,-450.0,0.00019999,2]
[359996223,1746471033922,-450.0,0.00019999,2]
[359996224,1746471033932,-450.0,0.00019999,2]
[359996225,1746471033942,-450.0,0.00019999,2]
[359996226,1746471033953,-450.0,0.00019999,2]
[359996227,1746471033964,-450.0,0.00019999,2]
[359996228,1746471033974,-450.0,0.00019999,2]
[359996229,1746471033985,-450.0,0.00019999,2]
[359996230,1746471033997,-450.0,0.00019999,2]
[359996231,1746471034008,-450.0,0.00019999,2]
[359996232,1746471034018,-173.86464297,0.00019999,2]
[359996233,1746471034027,-450.0,0.00019999,2]
[359996234,1746471034039,-450.0,0.00019999,2]
[359996235,1746471034049,-159.51,0.00019999,2]
[359996236,1746471034058,-450.0,0.00019999,2]
[359996237,1746471034070,-450.0,0.00019999,2]
[359996238,1746471034080,-450.0,0.00019999,2]
[359996239,1746471034090,-450.0,0.00019999,2]
[359996240,1746471034099,-450.0,0.00019999,2]
[359996241,1746471034108,-450.0,0.00019999,2]
[359996242,1746471034117,-450.0,0.00019999,2]
[359996243,1746471034127,-450.0,0.00019999,2]
[359996244,1746471034136,-1672.32394361,0.00019999,2]
[359996245,1746471035991,-527.22235995,0.00019822,2]
[359996246,1746471036047,-472.77764005,0.00019822,2]
[359996247,1746471036057,-1826.25836993,0.000199,2]
[359996248,1746471036067,-1141.0,0.00019935,2]
[359996249,1746471036077,-439.59604345,0.00019987,2]
[359996250,1746471036087,-500.0,0.00019987,2]
[359996251,1746471036096,-500.0,0.00019987,2]
[359996253,1746471036105,-500.0,0.00019987,2]
[359996255,1746471036114,-500.0,0.00019987,2]
[359996257,1746471036123,-500.0,0.00019987,2]
[359996259,1746471036132,-500.0,0.00019987,2]
[359996261,1746471036141,-401.39584113,0.00019987,2]
[359996263,1746471036150,-500.0,0.00019987,2]
[359996265,1746471036160,-500.0,0.00019987,2]
[359996267,1746471036170,-500.0,0.00019987,2]
[359996269,1746471036182,-500.0,0.00019987,2]
[359996271,1746471036192,-500.0,0.00019987,2]
[359996273,1746471036201,-500.0,0.00019987,2]
[359996275,1746471036211,-500.0,0.00019987,2]
[359996277,1746471036220,-500.0,0.00019987,2]
[359996279,1746471036229,-500.0,0.00019987,2]
[359996281,1746471036238,-500.0,0.00019987,2]
[359996282,1746471036247,-500.0,0.00019987,2]
[359996284,1746471036257,-500.0,0.00019987,2]
[359996286,1746471036266,-500.0,0.00019987,2]
[359996288,1746471036275,-500.0,0.00019987,2]
[359996290,1746471036284,-500.0,0.00019987,2]
[359996292,1746471036293,-500.0,0.00019987,2]
[359996294,1746471036302,-500.0,0.00019987,2]
[359996296,1746471036311,-500.0,0.00019987,2]
[359996298,1746471036320,-500.0,0.00019987,2]
[359996300,1746471036330,-500.0,0.00019987,2]
[359996302,1746471036339,-500.0,0.00019987,2]
[359996304,1746471036348,-500.0,0.00019987,2]
[359996306,1746471036358,-500.0,0.00019987,2]
[359996308,1746471036367,-500.0,0.00019987,2]
[359996310,1746471036376,-500.0,0.00019987,2]
[359996312,1746471036386,-500.0,0.00019987,2]
[359996314,1746471036395,-500.0,0.00019987,2]
[359996316,1746471036403,-500.0,0.00019987,2]
[359996317,1746471036414,-500.0,0.00019987,2]
[359996318,1746471036423,-500.0,0.00019987,2]
[359996319,1746471036432,-500.0,0.00019987,2]
[359996320,1746471036441,-500.0,0.00019987,2]
[359996321,1746471036451,-500.0,0.00019987,2]
[359996322,1746471036460,-500.0,0.00019987,2]
[359996323,1746471036469,-500.0,0.00019987,2]
[359996324,1746471036479,-500.0,0.00019987,2]
[359996325,1746471036488,-606.22562188,0.00019987,2]
[359996326,1746471036497,-500.0,0.00019987,2]
[359996327,1746471036506,-500.0,0.00019987,2]
[359996328,1746471036515,-500.0,0.00019987,2]
[359996329,1746471036524,-500.0,0.00019987,2]
[359996330,1746471036534,-500.0,0.00019987,2]
[359996331,1746471036543,-500.0,0.00019987,2]
[359996332,1746471036552,-500.0,0.00019987,2]
[359996333,1746471036561,-500.0,0.00019987,2]
[359996334,1746471036570,-500.0,0.00019987,2]
[359996336,1746471036578,-500.0,0.00019987,2]
[359996338,1746471036587,-500.0,0.00019987,2]
[359996340,1746471036597,-500.0,0.00019987,2]
[359996342,1746471036606,-500.0,0.00019987,2]
[359996344,1746471036615,-500.0,0.00019987,2]
[359996346,1746471036625,-500.0,0.00019987,2]
[359996348,1746471036634,-500.0,0.00019987,2]
[359996350,1746471036643,-500.0,0.00019987,2]
[359996352,1746471036653,-500.0,0.00019987,2]
[359996354,1746471036665,-500.0,0.00019987,2]
[359996356,1746471036674,-500.0,0.00019987,2]
[359996358,1746471036683,-500.0,0.00019987,2]
[359996360,1746471036693,-500.0,0.00019987,2]
[359996362,1746471036703,-500.0,0.00019987,2]
[359996364,1746471036712,-500.0,0.00019987,2]
[359996366,1746471036721,-487.35162611,0.00019987,2]
[359996368,1746471036730,-500.0,0.00019987,2]
[359996370,1746471036740,-500.0,0.00019987,2]
[359996372,1746471036749,-500.0,0.00019987,2]
[359996374,1746471036759,-450.0,0.00019998,2]
[359996376,1746471036768,-372.29605639,0.00019999,2]
[359996378,1746471036778,-2044.62,0.00019999,2]
[359996380,1746471036789,-2044.62,0.00019999,2]
[359996381,1746471036799,-2044.62,0.00019999,2]
[359996382,1746471036808,-2044.62,0.00019999,2]
[359996383,1746471036818,-2044.62,0.00019999,2]
[359996384,1746471036827,-2044.62,0.00019999,2]
[359996385,1746471036836,-2044.62,0.00019999,2]
[359996386,1746471036845,-2044.62,0.00019999,2]
[359996387,1746471036855,-2044.62,0.00019999,2]
[359996388,1746471036865,-491.14,0.00019999,2]
[359996389,1746471036874,-2044.62,0.00019999,2]
[359996390,1746471036883,-1910.91295384,0.00019999,2]
[359996391,1746471036900,-133.70704616,0.00019999,2]
[359996393,1746471036909,-1075.44720694,0.00019999,2]